bitfinex-derivatives/quotes_BTCF0:USTF0_20250915
["timestamp","ask_amount","ask_price","bid_price","bid_amount"]
[1757966929014,0.001,115450.0,115440.0,2.27108312]
[1757966929513,0.001,115450.0,115440.0,1.48284312]
[1757966929714,0.001,115450.0,115440.0,2.27108312]
[1757966932018,0.001,115450.0,115440.0,1.48284312]
[1757966932214,0.001,115450.0,115440.0,2.27104312]
[1757966940721,0.0001,115460.0,115440.0,2.27104312]
[1757966940920,0.0001,115460.0,115450.0,0.40631656]
[1757966941124,0.74130332,115470.0,115460.0,0.03476]
[1757966941322,0.76355368,115470.0,115460.0,1.21439656]
[1757966942214,0.76355368,115470.0,115460.0,1.23491453]
[1757966942719,0.76655368,115470.0,115460.0,1.23591453]
[1757966943622,0.03419712,115470.0,115460.0,1.23591453]
[1757966944022,0.40575368,115470.0,115460.0,1.23591453]
[1757966944624,0.40575368,115470.0,115460.0,1.21591453]
[1757966945726,0.03419712,115470.0,115460.0,1.1744211]
[1757966946525,0.03419712,115470.0,115460.0,0.3863411]
[1757966946728,0.03419712,115470.0,115460.0,1.1743811]
[1757966947029,0.03419712,115470.0,115460.0,0.84431797]
[1757966948926,0.02535036,115470.0,115460.0,0.84431797]
[1757966949428,0.003,115470.0,115460.0,0.84431797]
[1757966950030,0.01150124,115470.0,115460.0,0.84431797]
[1757966950330,0.37230124,115470.0,115460.0,0.84431797]
[1757966950733,0.39480207,115470.0,115460.0,0.84431797]
[1757966953131,0.39480221,115470.0,115460.0,0.84431797]
[1757966960039,0.03400221,115470.0,115460.0,0.84431797]
[1757966960244,0.39480221,115470.0,115460.0,0.84431797]
[1757966960539,0.39480253,115470.0,115460.0,0.84431797]
[1757966965040,0.38630129,115470.0,115460.0,0.84431797]
[1757966965436,0.02550129,115470.0,115460.0,1.1743811]
[1757966967244,0.38630129,115470.0,115460.0,1.1743811]
[1757966968043,0.38630129,115470.0,115460.0,1.1943811]
[1757966969247,0.02550129,115470.0,115460.0,1.1943811]
[1757966977559,0.003,115470.0,115460.0,1.4743811]
[1757966979052,0.003,115470.0,115460.0,1.8351811]
[1757966979252,0.003,115470.0,115460.0,1.9217725]
[1757966979453,0.0001,115480.0,115470.0,0.1227639]
[1757966979652,0.3609,115490.0,115480.0,0.03618]
[1757966979853,0.38335993,115490.0,115480.0,1.43388313]
[1757966980357,0.3609,115500.0,115490.0,0.03618]
[1757966980554,0.38334355,115500.0,115490.0,0.36624313]
[1757966980752,0.38334355,115500.0,115490.0,0.51624313]
[1757966980952,0.02254355,115500.0,115490.0,1.38388313]
[1757966981354,0.3609,115510.0,115500.0,0.03618]
[1757966981554,0.38332339,115510.0,115500.0,0.36624313]
[1757966981749,0.38332339,115510.0,115500.0,1.18384313]
[1757966981956,0.38332339,115510.0,115500.0,0.39624313]
[1757966982155,0.3608,115510.0,115500.0,1.18384313]
[1757966982350,0.36970462,115520.0,115510.0,0.01311]
[1757966982556,0.39211266,115520.0,115510.0,0.82378]
[1757966983857,0.39209925,115520.0,115510.0,0.82374]
[1757966984050,0.36960462,115520.0,115510.0,0.82374]
[1757966984251,0.36960462,115520.0,115510.0,0.03618]
[1757966984461,0.37260462,115520.0,115510.0,0.03718]
[1757966984763,0.37560462,115520.0,115510.0,0.03718]
[1757966985062,0.37560462,115520.0,115510.0,0.8247]
[1757966985264,0.44653883,115520.0,115510.0,0.8247]
[1757966985458,0.44653883,115520.0,115510.0,0.03718]
[1757966985758,0.77660196,115520.0,115510.0,0.03718]
[1757966996071,0.79904824,115520.0,115510.0,0.03718]
[1757966998175,0.79904824,115520.0,115510.0,0.05718]
[1757966999368,0.77660196,115520.0,115510.0,0.05718]
[1757966999774,0.79905486,115520.0,115510.0,0.05718]
[1757967004380,0.79905486,115520.0,115510.0,0.08718]
[1757967004879,0.46899173,115520.0,115510.0,0.08718]
[1757967005880,0.84001977,115520.0,115510.0,0.45820804]
[1757967007974,0.84001977,115520.0,115510.0,0.42820804]
[1757967011880,0.84001977,115520.0,115510.0,0.71820804]
[1757967012385,0.84001977,115520.0,115510.0,0.34718]
[1757967012577,1.46104781,115520.0,115510.0,0.01411]
[1757967012881,1.13683497,115520.0,115510.0,0.01411]
[1757967013482,1.09001977,115520.0,115510.0,0.01411]
[1757967013884,1.87709977,115520.0,115510.0,0.01411]
[1757967016488,1.09001977,115520.0,115510.0,0.01411]
[1757967016690,1.87709977,115520.0,115510.0,0.01411]
[1757967018100,1.09001977,115520.0,115510.0,0.01411]
[1757967018391,1.87709977,115520.0,115510.0,0.03514]
[1757967018595,1.09001977,115520.0,115510.0,0.03514]
[1757967018891,1.87705977,115520.0,115510.0,0.03514]
[1757967020195,1.87709977,115520.0,115510.0,0.03514]
[1757967021296,1.87709977,115520.0,115510.0,0.01411]
[1757967022090,1.50607173,115520.0,115510.0,0.01411]
[1757967022291,1.87709977,115520.0,115510.0,0.01411]
[1757967023999,1.87705977,115520.0,115510.0,0.01411]
[1757967028094,1.87701977,115520.0,115510.0,0.03558]
[1757967029193,1.87701977,115520.0,115510.0,0.01411]
[1757967029896,1.09001977,115520.0,115510.0,0.01411]
[1757967030097,1.87701977,115520.0,115510.0,0.01411]
[1757967030583,1.99804781,115520.0,115510.0,0.001]
[1757967030788,2.24804781,115520.0,115510.0,0.001]
[1757967031094,2.29486301,115520.0,115510.0,0.001]
[1757967031490,1.50786301,115520.0,115510.0,0.001]
[1757967031685,2.29482301,115520.0,115510.0,0.01467]
[1757967031993,1.92379497,115520.0,115510.0,0.01467]
[1757967032394,2.29482301,115520.0,115510.0,0.01467]
[1757967032689,1.50786301,115520.0,115510.0,0.01467]
[1757967032895,1.09001977,115520.0,115510.0,0.01467]
[1757967033099,1.87697977,115520.0,115510.0,0.01467]
[1757967034597,1.09001977,115520.0,115510.0,0.01467]
[1757967034892,1.87697977,115520.0,115510.0,0.01467]
[1757967037894,1.99800781,115520.0,115510.0,0.001]
[1757967038092,2.24800781,115520.0,115500.0,0.0001]
[1757967038289,1.14955656,115510.0,115500.0,0.0001]
[1757967038496,1.17200946,115510.0,115490.0,0.01321]
[1757967038695,1.88977608,115500.0,115490.0,0.01321]
[1757967038998,1.91222898,115500.0,115490.0,0.01311]
[1757967040092,1.91422898,115500.0,115490.0,0.01311]
[1757967040698,1.91422898,115500.0,115490.0,0.01411]
[1757967041100,1.91422898,115500.0,115490.0,0.01311]
[1757967041299,1.91622898,115500.0,115490.0,0.01411]
[1757967054211,2.5839575,115500.0,115470.0,0.07985]
[1757967054410,1.46365608,115480.0,115470.0,0.07985]
[1757967054610,2.27294898,115480.0,115460.0,0.01367]
[1757967054910,1.10285608,115470.0,115460.0,0.01367]
[1757967055103,1.12530898,115470.0,115460.0,0.01367]
[1757967056516,1.12630898,115470.0,115460.0,0.01367]
[1757967056810,0.38428781,115470.0,115460.0,0.03656]
[1757967057112,1.91322389,115470.0,115460.0,0.03656]
[1757967057614,1.91522389,115470.0,115460.0,0.03756]
[1757967058115,1.92381565,115470.0,115460.0,0.03756]
[1757967058611,1.99443431,115470.0,115460.0,0.03756]
[1757967060113,1.20755431,115470.0,115460.0,0.03756]
[1757967060313,1.99443431,115470.0,115460.0,0.03756]
[1757967064003,2.35523431,115470.0,115460.0,0.03756]
[1757967064811,2.35521925,115470.0,115460.0,0.03756]
[1757967065208,2.35525925,115470.0,115460.0,0.03756]
[1757967065710,1.56833925,115470.0,115460.0,0.03756]
[1757967066014,2.35521925,115470.0,115460.0,0.03756]
[1757967067814,1.94331975,115470.0,115460.0,0.03756]
[1757967068914,1.94331975,115470.0,115460.0,0.01467]
[1757967069409,2.19331975,115470.0,115460.0,0.01467]
[1757967073911,1.86316317,115470.0,115460.0,0.03703]
[1757967074109,2.19331975,115470.0,115460.0,0.03703]
[1757967075411,1.40643975,115470.0,115460.0,0.03703]
[1757967075811,2.19331975,115470.0,115460.0,0.03703]
[1757967089321,0.82628317,115470.0,115460.0,0.03703]
[1757967089522,1.94323975,115470.0,115460.0,0.05703]
[1757967094025,1.61308317,115470.0,115460.0,0.05703]
[1757967094226,1.94323975,115470.0,115460.0,0.05703]
[1757967106728,1.15643975,115470.0,115460.0,0.05703]
[1757967106934,1.94307975,115470.0,115460.0,0.05703]
[1757967108834,1.94307975,115470.0,115460.0,0.34703]
[1757967110327,0.46548317,115470.0,115460.0,0.91718658]
[1757967110535,0.08221042,115470.0,115460.0,0.73718658]
[1757967110734,0.08221042,115470.0,115460.0,1.09798658]
[1757967111732,0.07361866,115470.0,115460.0,1.19798658]
[1757967111934,0.003,115470.0,115460.0,1.19798658]
[1757967113041,0.003,115470.0,115460.0,1.20649565]
[1757967113334,0.003,115470.0,115460.0,0.98299184]
[1757967113540,0.003,115470.0,115460.0,1.22655712]
[1757967113733,0.003,115470.0,115460.0,1.71992054]
[1757967113930,0.003,115470.0,115460.0,1.22655712]
[1757967114133,0.003,115470.0,115460.0,2.05027712]
[1757967114341,0.003,115470.0,115460.0,1.72012054]
[1757967114539,0.003,115470.0,115460.0,1.79028126]
[1757967115337,0.003,115470.0,115460.0,2.12043784]
[1757967117446,0.003,115470.0,115460.0,1.29671784]
[1757967117646,0.003,115470.0,115460.0,2.11943784]
[1757967120052,0.003,115470.0,115460.0,2.20542914]
[1757967120254,0.003,115470.0,115460.0,2.11859784]
[1757967121555,0.003,115470.0,115460.0,1.29671784]
[1757967121852,0.003,115470.0,115460.0,2.11819784]
[1757967122752,0.003,115470.0,115460.0,1.29671784]
[1757967123053,0.003,115470.0,115460.0,2.11819784]
[1757967124453,0.003,115470.0,115460.0,2.20478914]
[1757967124652,0.07859361,115490.0,115480.0,0.0353]
[1757967124849,0.07859361,115490.0,115480.0,1.18621658]
[1757967125351,0.07859361,115490.0,115480.0,0.85606]
[1757967125750,0.07859361,115490.0,115480.0,0.85706]
[1757967125951,0.08459361,115490.0,115480.0,0.85706]
[1757967126247,0.08459361,115490.0,115480.0,1.18721658]
[1757967126646,0.08459361,115490.0,115480.0,1.18621658]
[1757967126853,0.08259361,115490.0,115480.0,1.18721658]
[1757967127346,0.08259361,115490.0,115480.0,0.96706]
[1757967127552,0.07959361,115490.0,115480.0,0.96706]
[1757967127748,0.0021,115490.0,115480.0,1.44704289]
[1757967127952,0.0021,115490.0,115480.0,1.80784289]
[1757967128753,0.0021,115490.0,115480.0,1.89441919]
[1757967128950,0.0021,115490.0,115480.0,2.22457577]
[1757967129154,0.3608,115510.0,115500.0,0.0353]
[1757967129456,0.3608,115510.0,115500.0,1.50481658]
[1757967129651,0.3608,115510.0,115500.0,1.31481658]
[1757967129852,0.3608,115510.0,115500.0,1.35565659]
[1757967130149,0.74065907,115520.0,115500.0,1.35565659]
[1757967130353,0.74065907,115520.0,115510.0,0.40629659]
[1757967130754,0.8093919,115520.0,115510.0,0.51629659]
[1757967132055,0.8123919,115520.0,115510.0,0.40629659]
[1757967132657,0.8123919,115520.0,115510.0,0.40729659]
[1757967132658,0.4525919,115520.0,115510.0,0.40729659]
[1757967133260,0.4525919,115520.0,115510.0,0.48729659]
[1757967133655,0.4515919,115520.0,115510.0,0.48729659]
[1757967136361,0.003,115520.0,115510.0,0.74729659]
[1757967136664,0.003,115520.0,115510.0,1.06809659]
[1757967139964,0.003,115520.0,115510.0,1.31809659]
[1757967140264,0.3608,115540.0,115530.0,0.40629659]
[1757967140265,0.73179659,115540.0,115530.0,0.40629659]
[1757967140563,0.82423702,115540.0,115530.0,1.22241659]
[1757967140861,0.82423702,115540.0,115530.0,0.40629659]
[1757967141068,0.83305459,115540.0,115530.0,0.42646977]
[1757967141268,0.83605459,115540.0,115530.0,0.42646977]
[1757967141465,0.83605459,115540.0,115530.0,1.24226977]
[1757967141962,0.84005459,115540.0,115530.0,1.24326977]
[1757967142154,0.76999081,115540.0,115530.0,1.24326977]
[1757967143064,0.76899081,115540.0,115530.0,1.24326977]
[1757967143469,0.76699081,115540.0,115530.0,1.24326977]
[1757967143967,0.40619081,115540.0,115530.0,1.24326977]
[1757967144669,0.40619081,115540.0,115530.0,1.52326977]
[1757967144869,0.004,115540.0,115530.0,2.31506636]
[1757967145070,0.004,115540.0,115530.0,2.56506636]
[1757967145260,0.0001,115550.0,115540.0,0.0353]
[1757967145460,0.75425373,115560.0,115540.0,0.54629659]
[1757967145667,0.82191789,115560.0,115550.0,1.19822659]
[1757967145869,0.46101789,115560.0,115550.0,1.19822659]
[1757967146062,0.82181789,115560.0,115550.0,1.19822659]
[1757967146263,0.82181789,115560.0,115550.0,1.22057659]
[1757967146664,0.82581789,115560.0,115550.0,0.40629659]
[1757967146863,0.82881789,115560.0,115550.0,0.40629659]
[1757967147067,0.82881789,115560.0,115550.0,1.22029659]
[1757967147269,0.82881789,115560.0,115550.0,0.40629659]
[1757967147457,0.83757193,115560.0,115550.0,1.22017659]
[1757967147662,0.83757193,115560.0,115550.0,1.24017659]
[1757967148362,0.83757193,115560.0,115550.0,1.22017659]
[1757967148563,0.83557193,115560.0,115550.0,0.42729659]
[1757967148769,0.83557193,115560.0,115550.0,1.24117659]
[1757967149068,0.83557193,115560.0,115550.0,1.24017659]
[1757967149267,0.83457193,115560.0,115550.0,1.24017659]
[1757967149468,0.83457193,115560.0,115550.0,1.22017659]
[1757967150770,0.47377193,115560.0,115550.0,1.22017659]
[1757967150969,0.83457193,115560.0,115550.0,1.22017659]
[1757967152570,0.46357534,115560.0,115550.0,1.22017659]
[1757967153068,0.47377193,115560.0,115550.0,1.22017659]
[1757967153668,0.10277534,115560.0,115550.0,1.33017659]
[1757967154267,0.47377193,115560.0,115550.0,1.33017659]
[1757967154565,0.02635714,115560.0,115550.0,1.33017659]
[1757967154770,0.39735373,115560.0,115550.0,1.33017659]
[1757967154970,0.02635714,115560.0,115550.0,1.33017659]
[1757967155271,0.39735373,115560.0,115550.0,1.33017659]
[1757967156068,0.40612296,115560.0,115550.0,1.33017659]
[1757967156971,0.03512637,115560.0,115550.0,1.33017659]
[1757967157173,0.40612296,115560.0,115550.0,1.33017659]
[1757967157373,0.40612296,115560.0,115550.0,1.23017659]
[1757967159175,0.40612296,115560.0,115550.0,0.41629659]
[1757967159373,0.40612296,115560.0,115550.0,1.22825659]
[1757967159573,0.40612296,115560.0,115550.0,0.41629659]
[1757967159776,0.40612296,115560.0,115550.0,1.22801659]
[1757967159970,0.39735373,115560.0,115550.0,1.22801659]
[1757967160473,0.02635714,115560.0,115550.0,1.22801659]
[1757967160976,0.39735373,115560.0,115550.0,1.22801659]
[1757967161175,0.02635714,115560.0,115550.0,1.22801659]
[1757967161375,0.39735373,115560.0,115550.0,1.22801659]
[1757967161975,0.02635714,115560.0,115550.0,1.50814659]
[1757967162170,0.02635714,115560.0,115550.0,0.93715]
[1757967162369,0.02635714,115560.0,115550.0,1.30814659]
[1757967162974,0.39735373,115560.0,115550.0,1.30754659]
[1757967163275,0.39735373,115560.0,115550.0,1.29742659]
[1757967163476,0.39735373,115560.0,115550.0,1.30738659]
[1757967166479,0.02635714,115560.0,115550.0,1.30738659]
[1757967166673,0.39735373,115560.0,115550.0,1.30738659]
[1757967169279,0.39735373,115560.0,115550.0,0.93639]
[1757967169476,0.39735373,115560.0,115550.0,1.30738659]
[1757967170276,0.39726924,115560.0,115550.0,1.30738659]
[1757967171482,0.39726924,115560.0,115550.0,0.49642659]
[1757967171677,0.39726924,115560.0,115550.0,1.30578659]
[1757967173087,0.02627265,115560.0,115550.0,0.93479]
[1757967173287,0.39726924,115560.0,115550.0,1.30578659]
[1757967174086,0.39726924,115560.0,115550.0,0.93479]
[1757967174283,0.39726924,115560.0,115550.0,1.30578659]
[1757967175780,0.02627265,115560.0,115550.0,1.30578659]
[1757967175987,0.39726924,115560.0,115550.0,1.30578659]
[1757967176690,0.39726924,115560.0,115550.0,0.93479]
[1757967176890,0.39726924,115560.0,115550.0,1.30578659]
[1757967177591,0.02627265,115560.0,115550.0,1.30578659]
[1757967177892,0.39726924,115560.0,115550.0,1.30578659]
[1757967178978,0.02627265,115560.0,115550.0,1.30578659]
[1757967179180,0.39726924,115560.0,115550.0,1.30578659]
[1757967179979,0.39726924,115560.0,115550.0,0.12543]
[1757967180184,0.39726924,115560.0,115550.0,1.30378659]
[1757967181691,0.02627265,115560.0,115550.0,1.30378659]
[1757967181889,0.39726924,115560.0,115550.0,1.30378659]
[1757967184295,0.02627265,115560.0,115550.0,1.30378659]
[1757967184492,0.02627265,115560.0,115550.0,1.58378659]
[1757967184791,0.39726924,115560.0,115550.0,1.58378659]
[1757967184993,0.39726924,115560.0,115550.0,1.94458659]
[1757967185492,0.02627265,115560.0,115550.0,1.94458659]
[1757967185996,0.02627265,115560.0,115550.0,2.56558318]
[1757967186197,0.004,115560.0,115550.0,2.56558318]
[1757967190099,0.004,115560.0,115550.0,2.63511485]
[1757967191802,0.004,115560.0,115550.0,2.22256365]
[1757967195106,0.004,115560.0,115550.0,0.11543]
[1757967195309,0.004,115560.0,115550.0,0.99951]
[1757967195706,0.004,115560.0,115550.0,1.32895198]
[1757967196307,0.004,115560.0,115550.0,1.56895198]
[1757967196610,0.004,115560.0,115550.0,1.50895198]
[1757967196800,0.004,115560.0,115550.0,1.24895198]
[1757967197003,0.004,115560.0,115550.0,1.29895198]
[1757967198909,0.004,115560.0,115550.0,0.49487198]
[1757967199114,0.004,115560.0,115550.0,1.48875198]
[1757967199616,0.004,115560.0,115550.0,1.15931]
[1757967199917,0.004,115560.0,115550.0,1.57875198]
[1757967200713,0.94424198,115560.0,115550.0,0.44543]
[1757967200912,0.94424198,115560.0,115550.0,1.24891]
[1757967205118,0.6148,115560.0,115550.0,1.24891]
[1757967205313,0.6148,115560.0,115550.0,1.03891]
[1757967205519,0.6148,115560.0,115550.0,1.20891]
[1757967209621,0.6370599,115560.0,115550.0,1.20891]
[1757967211725,0.6370599,115560.0,115550.0,0.40543]
[1757967212025,0.96650163,115560.0,115550.0,1.20719]
[1757967216023,0.71650163,115560.0,115550.0,0.40543]
[1757967216225,1.29594361,115560.0,115550.0,0.38292]
[1757967216424,0.96650163,115560.0,115550.0,0.38292]
[1757967217428,0.96650163,115560.0,115550.0,0.40468]
[1757967217630,1.29594361,115560.0,115550.0,0.40468]
[1757967218226,0.96650163,115560.0,115550.0,0.40468]
[1757967218730,0.96650163,115560.0,115550.0,0.32455]
[1757967219334,0.71650163,115560.0,115550.0,0.32455]
[1757967220534,0.71650163,115560.0,115550.0,0.30279]
[1757967220729,0.96650163,115560.0,115550.0,0.30279]
[1757967220928,0.96651347,115560.0,115550.0,0.30279]
[1757967222130,1.29595545,115560.0,115550.0,0.30279]
[1757967222927,1.29595545,115560.0,115550.0,0.03455]
[1757967223133,1.76619347,115560.0,115550.0,0.05455]
[1757967224933,1.76583347,115560.0,115550.0,0.05455]
[1757967225629,0.96651347,115560.0,115550.0,0.05455]
[1757967225828,1.76575347,115560.0,115550.0,0.05455]
[1757967226823,0.96651347,115560.0,115550.0,0.05455]
[1757967227028,1.76571347,115560.0,115550.0,0.05455]
[1757967227429,0.96651347,115560.0,115550.0,0.05455]
[1757967227734,2.09499545,115560.0,115550.0,0.02]
[1757967228635,2.09499545,115560.0,115540.0,0.01289]
[1757967228834,0.69024198,115550.0,115540.0,0.01289]
[1757967229028,0.71251347,115550.0,115540.0,0.01279]
[1757967230137,1.51127347,115550.0,115540.0,0.03455]
[1757967230438,1.51327347,115550.0,115540.0,0.03455]
[1757967230737,1.51427347,115550.0,115540.0,0.03455]
[1757967233838,1.51427347,115550.0,115540.0,0.01279]
[1757967234339,1.51427347,115550.0,115540.0,0.03592]
[1757967239442,1.87507347,115550.0,115540.0,0.03592]
[1757967244441,1.87854591,115550.0,115540.0,0.03592]
[1757967244641,1.87854591,115550.0,115540.0,0.01279]
[1757967244842,1.87854591,115550.0,115540.0,0.03423]
[1757967248042,1.07978591,115550.0,115540.0,0.03423]
[1757967248247,1.87622591,115550.0,115540.0,0.05423]
[1757967249148,0.75034393,115550.0,115540.0,0.05423]
[1757967249348,1.87594591,115550.0,115540.0,0.05423]
[1757967251749,1.91742497,115550.0,115540.0,0.05423]
[1757967252048,1.12126497,115550.0,115540.0,0.05423]
[1757967252245,1.91710497,115550.0,115540.0,0.05423]
[1757967259159,1.91710497,115550.0,115540.0,0.03423]
[1757967264966,1.54618393,115550.0,115540.0,0.03423]
[1757967265162,1.91710497,115550.0,115540.0,0.03423]
[1757967270164,1.91518497,115550.0,115540.0,0.05423]
[1757967271769,1.91518497,115550.0,115540.0,0.0548]
[1757967272568,1.91518497,115550.0,115540.0,0.03279]
[1757967275963,1.91518497,115550.0,115540.0,0.0548]
[1757967278872,1.91518497,115550.0,115540.0,0.03279]
[1757967279173,1.91518497,115550.0,115540.0,0.0548]
[1757967279969,1.91518497,115550.0,115540.0,0.03279]
[1757967280165,2.28610601,115550.0,115540.0,0.01279]
[1757967280369,1.49218601,115550.0,115540.0,0.01279]
[1757967280573,2.28590601,115550.0,115540.0,0.01279]
[1757967281672,1.49218601,115550.0,115540.0,0.01279]
[1757967281977,2.28590601,115550.0,115540.0,0.01279]
[1757967289866,1.49218601,115550.0,115540.0,0.01279]
[1757967290072,2.28590601,115550.0,115540.0,0.01279]
[1757967290774,1.49218601,115550.0,115540.0,0.01279]
[1757967290981,1.91498497,115550.0,115540.0,0.03279]
[1757967293381,1.12126497,115550.0,115540.0,0.03279]
[1757967293680,1.91494497,115550.0,115540.0,0.03279]
[1757967294082,1.12126497,115550.0,115540.0,0.0548]
[1757967294381,1.91494497,115550.0,115540.0,0.0548]
[1757967294773,1.91494497,115550.0,115540.0,0.03279]
[1757967297888,1.12126497,115550.0,115540.0,0.05443]
[1757967298183,1.91494497,115550.0,115540.0,0.05443]
[1757967299885,1.91490497,115550.0,115540.0,0.05443]
[1757967310392,1.91482497,115550.0,115540.0,0.05443]
[1757967312900,2.53574601,115550.0,115530.0,0.01289]
[1757967313099,1.10264208,115540.0,115530.0,0.03289]
[1757967313302,1.10264208,115540.0,115530.0,0.09294]
[1757967313303,1.12491357,115540.0,115530.0,0.09294]
[1757967313602,1.12838601,115540.0,115530.0,0.11497]
[1757967313900,0.71633372,115540.0,115530.0,0.11497]
[1757967317305,1.50981372,115540.0,115530.0,0.11497]
[1757967317504,1.57854162,115540.0,115530.0,0.11497]
[1757967323305,1.57850162,115540.0,115530.0,0.38497]
[1757967326298,1.57850162,115540.0,115530.0,0.11497]
[1757967329511,0.78506162,115540.0,115530.0,0.41528425]
[1757967329707,1.57842162,115540.0,115530.0,0.51528425]
[1757967330011,0.78506162,115540.0,115530.0,0.38528425]
[1757967330312,1.57842162,115540.0,115530.0,0.38528425]
[1757967330702,0.78506162,115540.0,115530.0,0.38528425]
[1757967330903,0.78506162,115540.0,115530.0,0.41528425]
[1757967332211,0.78506162,115540.0,115530.0,0.38528425]
[1757967339317,0.78506162,115540.0,115530.0,0.13528425]
[1757967339816,0.78506162,115540.0,115530.0,0.15528425]
[1757967340015,0.78506162,115540.0,115530.0,0.13528425]
[1757967343113,0.78506162,115540.0,115530.0,0.09294]
[1757967343714,0.78506162,115540.0,115530.0,0.11294]
[1757967343916,0.78506162,115540.0,115530.0,0.09294]
[1757967346117,0.78506162,115540.0,115530.0,0.11579]
[1757967346314,1.03506162,115540.0,115530.0,0.09294]
[1757967348718,1.82818162,115540.0,115530.0,0.13579]
[1757967348918,0.78506162,115540.0,115530.0,0.13579]
[1757967351023,1.57818162,115540.0,115530.0,0.13579]
[1757967351823,0.78506162,115540.0,115530.0,0.13579]
[1757967352025,1.57814162,115540.0,115530.0,0.13579]
[1757967354223,0.78506162,115540.0,115530.0,0.13579]
[1757967354423,1.57810162,115540.0,115530.0,0.13579]
[1757967359728,0.09447183,115540.0,115530.0,0.45579]
[1757967359930,0.09447183,115540.0,115530.0,1.03557979]
[1757967359931,0.00347244,115540.0,115530.0,1.03557979]
[1757967360121,0.00347244,115540.0,115530.0,0.36579]
[1757967360327,0.00347244,115540.0,115530.0,0.54579]
[1757967362932,0.00347244,115540.0,115530.0,0.36579]
[1757967363733,0.00347244,115540.0,115530.0,0.39579]
[1757967364425,0.00347244,115540.0,115530.0,1.18863]
[1757967366534,0.00347244,115540.0,115530.0,1.18859]
[1757967368433,0.33326223,115540.0,115530.0,0.11579]
[1757967368633,0.76261703,115540.0,115530.0,0.90859]
[1757967370435,0.76261703,115540.0,115530.0,0.93859]
[1757967371136,0.40181703,115540.0,115530.0,0.93859]
[1757967372038,0.40181703,115540.0,115530.0,1.29939]
[1757967372227,0.40181703,115540.0,115530.0,1.28939]
[1757967372432,0.07202724,115540.0,115530.0,1.61917979]
[1757967372827,0.07202724,115540.0,115530.0,1.28939]
[1757967373639,0.00347244,115540.0,115530.0,2.12917979]
[1757967373937,0.00347244,115540.0,115530.0,2.17015452]
[1757967374737,0.00347244,115540.0,115530.0,1.00659]
[1757967375033,0.73503696,115540.0,115530.0,1.32843]
[1757967375234,0.75736344,115540.0,115530.0,0.90843]
[1757967375436,0.38659892,115540.0,115530.0,0.90843]
[1757967375637,0.75736344,115540.0,115530.0,0.90843]
[1757967375936,0.73503696,115540.0,115530.0,0.90843]
[1757967376833,0.73503696,115540.0,115530.0,0.11579]
[1757967377040,0.73503696,115540.0,115530.0,0.90839]
[1757967377540,0.73503696,115540.0,115530.0,0.92839]
[1757967377941,0.73503696,115540.0,115530.0,0.13579]
[1757967378139,0.73503696,115540.0,115530.0,0.11579]
[1757967378140,1.17380945,115540.0,115530.0,0.11579]
[1757967378342,0.82538086,115540.0,115530.0,0.13579]
[1757967379746,0.45461634,115540.0,115530.0,0.13579]
[1757967380140,0.82538086,115540.0,115530.0,0.13579]
[1757967390852,1.19614538,115540.0,115530.0,0.11579]
[1757967391156,1.44614538,115540.0,115530.0,0.11294]
[1757967391557,1.44614538,115540.0,115530.0,0.09294]
[1757967392357,1.44614538,115540.0,115530.0,0.08015]
[1757967399363,1.19614538,115540.0,115530.0,0.08015]
[1757967402565,1.98842538,115540.0,115530.0,0.08015]
[1757967406468,1.19614538,115540.0,115530.0,0.08015]
[1757967406765,1.98838538,115540.0,115530.0,0.08015]
[1757967410163,1.19614538,115540.0,115530.0,0.08015]
[1757967410765,1.98830538,115540.0,115530.0,0.08015]
[1757967412268,1.19614538,115540.0,115530.0,0.08015]
[1757967413169,1.98830538,115540.0,115530.0,0.08015]
[1757967413368,1.19614538,115540.0,115530.0,0.08015]
[1757967413769,1.98826538,115540.0,115530.0,0.08015]
[1757967415769,1.19614538,115540.0,115530.0,0.08015]
[1757967416162,1.98822538,115540.0,115530.0,0.08015]
[1757967416674,0.45461634,115540.0,115530.0,0.09411]
[1757967416974,1.98822538,115540.0,115530.0,0.09411]
[1757967417578,1.19614538,115540.0,115530.0,0.09411]
[1757967417876,1.98818538,115540.0,115530.0,0.09411]
[1757967418578,1.19614538,115540.0,115530.0,0.09411]
[1757967418777,1.98818538,115540.0,115530.0,0.09411]
[1757967419780,2.03488586,115540.0,115530.0,0.09411]
[1757967419980,1.98818538,115540.0,115530.0,0.09411]
[1757967420175,1.19614538,115540.0,115530.0,0.09411]
[1757967420480,1.19614538,115540.0,115530.0,0.11515]
[1757967420680,1.98814538,115540.0,115530.0,0.11515]
[1757967421182,2.03484586,115540.0,115530.0,0.11515]
[1757967422782,1.98814538,115540.0,115530.0,0.11515]
[1757967426376,1.98814538,115540.0,115530.0,0.09411]
[1757967427884,2.03484586,115540.0,115530.0,0.08015]
[1757967430580,2.03484586,115540.0,115530.0,0.09411]
[1757967430980,1.98814538,115540.0,115530.0,0.09411]
[1757967432682,2.03484586,115540.0,115530.0,0.09411]
[1757967435786,1.62315378,115540.0,115530.0,0.09411]
[1757967439989,1.62287378,115540.0,115530.0,0.09411]
[1757967440379,1.5761733,115540.0,115530.0,0.09411]
[1757967442688,1.5761733,115540.0,115530.0,0.11515]
[1757967443194,1.5771733,115540.0,115530.0,0.11515]
[1757967444295,1.5791733,115540.0,115530.0,0.11515]
[1757967444995,1.5791733,115540.0,115530.0,0.38515]
[1757967444996,1.5790933,115540.0,115530.0,0.38515]
[1757967445195,1.5790533,115540.0,115530.0,0.36515]
[1757967445895,1.5760533,115540.0,115530.0,0.36515]
[1757967447499,1.5760533,115540.0,115530.0,0.63515]
[1757967447699,0.45461634,115540.0,115530.0,0.36515]
[1757967447896,0.09381634,115540.0,115530.0,0.70515]
[1757967448492,0.4236533,115540.0,115530.0,0.68515]
[1757967448995,0.09381634,115540.0,115530.0,0.36515]
[1757967449193,0.09374754,115540.0,115530.0,0.65515]
[1757967449696,0.07148041,115540.0,115530.0,0.39515]
[1757967449898,0.07148041,115540.0,115530.0,0.66515]
[1757967451896,0.00347244,115540.0,115530.0,0.66515]
[1757967452500,0.00347244,115540.0,115530.0,0.42515]
[1757967452699,0.00347244,115540.0,115530.0,0.70515]
[1757967454600,0.00347244,115540.0,115530.0,0.70915]
[1757967456800,0.00347244,115540.0,115530.0,1.06995]
[1757967456999,0.00347244,115540.0,115530.0,1.86127]
[1757967457304,0.00347244,115540.0,115530.0,1.06995]
[1757967457606,0.00347244,115540.0,115530.0,1.86123]